fUSD/lending_fUSD_20240107
["ID","MTS","AMOUNT","RATE_DAILY","PERIOD"]
[310627626,1704592239476,-500.0,0.00022794,2]
[310627628,1704592239485,-500.0,0.00022794,2]
[310627630,1704592239494,-626.75989148,0.00022794,2]
[310627632,1704592239503,-500.0,0.00022794,2]
[310627634,1704592239513,-500.0,0.00022794,2]
[310627635,1704592239522,-500.0,0.00022794,2]
[310627636,1704592239531,-500.0,0.00022794,2]
[310627637,1704592239540,-187.35487762,0.00022794,2]
[310627638,1704592239550,-500.0,0.00022794,2]
[310627639,1704592239559,-500.0,0.00022794,2]
[310627640,1704592239568,-500.0,0.00022794,2]
[310627641,1704592239577,-500.0,0.00022794,2]
[310627642,1704592239587,-428.50692723,0.00022794,2]
[310627643,1704592239596,-500.0,0.00022794,2]
[310627644,1704592239606,-1108.26,0.00022794,2]
[310627645,1704592239615,-3150.06509153,0.00022794,2]
[310627646,1704592239646,-2050.28490847,0.00022794,2]
[310627647,1704592239656,-500.0,0.00022794,2]
[310627648,1704592239665,-500.0,0.00022794,2]
[310627649,1704592239675,-500.0,0.00022794,2]
[310627650,1704592239685,-500.0,0.00022794,2]
[310627651,1704592239694,-500.0,0.00022794,2]
[310627652,1704592239703,-207.76053117,0.00022794,2]
[310627653,1704592239713,-598.32,0.00022794,2]
[310627654,1704592239723,-500.0,0.00022794,2]
[310627655,1704592239734,-500.0,0.00022794,2]
[310627656,1704592239744,-500.0,0.00022794,2]
[310627657,1704592239754,-500.0,0.00022794,2]
[310627658,1704592239765,-500.0,0.00022794,2]
[310627659,1704592239774,-1033.85,0.00022794,2]
[310627660,1704592239783,-500.0,0.00022794,2]
[310627661,1704592239792,-570.53788369,0.00022794,2]
[310627662,1704592239802,-564.01,0.00022794,2]
[310627663,1704592239811,-500.0,0.00022794,2]
[310627664,1704592239820,-500.0,0.00022794,2]
[310627665,1704592239829,-994.12,0.00022794,2]
[310627666,1704592239838,-500.0,0.00022794,2]
[310627667,1704592239848,-500.0,0.00022794,2]
[310627668,1704592239857,-720.04,0.00022794,2]
[310627669,1704592239866,-349.13260793,0.00022794,2]
[310627670,1704592239875,-621.25204698,0.00022794,2]
[310627671,1704592239886,-647.41493309,0.00022794,2]
[310627672,1704592239896,-500.0,0.00022794,2]
[310627673,1704592239905,-500.0,0.00022794,2]
[310627674,1704592239915,-3603.35,0.00022794,2]
[310627675,1704592239925,-216.76047592,0.00022794,2]
[310627676,1704592239935,-555.29477529,0.00022794,2]
[310627677,1704592239945,-500.0,0.00022794,2]
[310627679,1704592240182,-500.0,0.00022794,2]
[310627680,1704592240192,-500.0,0.00022794,2]
[310627681,1704592240202,-500.0,0.00022794,2]
[310627682,1704592240211,-425.92509917,0.00022794,2]
[310627683,1704592240221,-500.0,0.00022794,2]
[310627684,1704592240230,-500.0,0.00022794,2]
[310627685,1704592240239,-500.0,0.00022794,2]
[310627686,1704592240248,-500.0,0.00022794,2]
[310627687,1704592240258,-627.8306933,0.00022794,2]
[310627688,1704592240268,-500.0,0.00022794,2]
[310627689,1704592240277,-500.0,0.00022794,2]
[310627690,1704592240286,-500.0,0.00022794,2]
[310627691,1704592240295,-1542.22,0.00022794,2]
[310627692,1704592240305,-500.0,0.00022794,2]
[310627693,1704592240315,-187.89668624,0.00022794,2]
[310627694,1704592240324,-542.2471142,0.00022794,2]
[310627695,1704592240334,-500.0,0.00022794,2]
[310627696,1704592240343,-532.64514095,0.00022794,2]
[310627697,1704592240352,-809.16,0.00022794,2]
[310627698,1704592240362,-500.0,0.00022794,2]
[310627699,1704592240371,-606.41985222,0.00022794,2]
[310627700,1704592240381,-500.0,0.00022794,2]
[310627701,1704592240390,-567.04417208,0.00022794,2]
[310627702,1704592240400,-500.0,0.00022794,2]
[310627703,1704592240409,-500.0,0.00022794,2]
[310627704,1704592240418,-500.0,0.00022794,2]
[310627705,1704592240428,-500.0,0.00022794,2]
[310627706,1704592240438,-500.0,0.00022794,2]
[310627707,1704592240447,-377.81372309,0.00022794,2]
[310627708,1704592240457,-500.0,0.00022794,2]
[310627709,1704592240467,-500.0,0.00022794,2]
[310627710,1704592240480,-500.0,0.00022794,2]
[310627711,1704592240489,-642.8,0.00022794,2]
[310627712,1704592240499,-642.8,0.00022794,2]
[310627713,1704592240510,-500.0,0.00022794,2]
[310627714,1704592240520,-500.0,0.00022794,2]
[310627715,1704592240529,-500.0,0.00022794,2]
[310627716,1704592240538,-570.18838337,0.00022794,2]
[310627717,1704592240548,-500.0,0.00022794,2]
[310627718,1704592240558,-500.0,0.00022794,2]
[310627719,1704592240567,-500.0,0.00022794,2]
[310627720,1704592240576,-500.0,0.00022794,2]
[310627721,1704592240585,-500.0,0.00022794,2]
[310627722,1704592240594,-500.0,0.00022794,2]
[310627723,1704592240603,-500.0,0.00022794,2]
[310627724,1704592240613,-569.74,0.00022794,2]
[310627725,1704592240623,-569.74,0.00022794,2]
[310627726,1704592240634,-190.95539468,0.00022794,2]
[310627727,1704592240644,-500.0,0.00022794,2]
[310627728,1704592240654,-163.41947265,0.00022794,2]
[310627729,1704592240663,-500.0,0.00022794,2]
[310627730,1704592240672,-228.08700673,0.00022794,2]
[310627731,1704592240945,-271.91299327,0.00022794,2]
[310627732,1704592240957,-565.28941002,0.00022794,2]
[310627733,1704592240965,-617.87,0.00022794,2]
[310627734,1704592240974,-500.0,0.00022794,2]
[310627735,1704592240983,-617.87,0.00022794,2]
[310627736,1704592240992,-500.0,0.00022794,2]
[310627737,1704592241001,-500.0,0.00022794,2]
[310627738,1704592241010,-500.0,0.00022794,2]
[310627739,1704592241020,-541.61634583,0.00022794,2]
[310627740,1704592241029,-1325.79,0.00022794,2]
[310627741,1704592241038,-500.0,0.00022794,2]
[310627742,1704592241046,-2819.5,0.00022794,2]
[310627743,1704592241056,-2819.5,0.00022794,2]
[310627744,1704592241065,-500.0,0.00022794,2]
[310627745,1704592241074,-196.40120811,0.00022794,2]
[310627746,1704592241083,-500.0,0.00022794,2]
[310627747,1704592241092,-500.0,0.00022794,2]
[310627748,1704592241101,-16303.39,0.00022794,2]
[310627749,1704592241110,-16303.39,0.00022794,2]
[310627750,1704592241120,-500.0,0.00022794,2]
[310627751,1704592241129,-2223.49,0.00022794,2]
[310627752,1704592241139,-2223.49,0.00022794,2]
[310627753,1704592241148,-500.0,0.00022794,2]
[310627754,1704592241157,-500.0,0.00022794,2]
[310627755,1704592241166,-180.65025024,0.00022794,2]
[310627756,1704592241175,-500.0,0.00022794,2]
[310627757,1704592241184,-500.0,0.00022794,2]
[310627758,1704592241193,-500.0,0.00022794,2]
[310627759,1704592241202,-500.0,0.00022794,2]
[310627760,1704592241211,-500.0,0.00022794,2]
[310627761,1704592241220,-1376.06,0.00022794,2]
[310627762,1704592241229,-500.0,0.00022794,2]
[310627763,1704592241239,-500.0,0.00022794,2]
[310627764,1704592241249,-500.0,0.00022794,2]
[310627765,1704592241258,-223.89823088,0.00022794,2]
[310627766,1704592241267,-500.0,0.00022794,2]
[310627767,1704592241276,-514.39,0.00022794,2]
[310627768,1704592241285,-514.39,0.00022794,2]
[310627769,1704592241294,-471.36409368,0.00022794,2]
[310627770,1704592241303,-618.81451358,0.00022794,2]
[310627771,1704592241312,-500.0,0.00022794,2]
[310627772,1704592241321,-500.0,0.00022794,2]
[310627773,1704592241330,-367.7628727,0.00022794,2]
[310627774,1704592241342,-132.2371273,0.00022794,2]
[310627775,1704592241351,-500.0,0.00022794,2]
[310627776,1704592241361,-500.0,0.00022794,2]
[310627777,1704592241370,-500.0,0.00022794,2]
[310627778,1704592241379,-500.0,0.00022794,2]
[310627779,1704592241389,-200.22585884,0.00022794,2]
[310627780,1704592241398,-500.0,0.00022794,2]
[310627781,1704592241407,-1524.68,0.00022794,2]
[310627782,1704592241417,-500.0,0.00022794,2]
[310627783,1704592241426,-252.8928127,0.00022794,2]
[310627784,1704592241435,-1097.74,0.00022794,2]
[310627785,1704592241444,-500.0,0.00022794,2]
[310627786,1704592241453,-500.0,0.00022794,2]
[310627787,1704592241462,-724.2,0.00022794,2]
[310627788,1704592241471,-500.0,0.00022794,2]
[310627789,1704592241479,-500.0,0.00022794,2]
[310627790,1704592241489,-213.48967292,0.00022794,2]
[310627791,1704592241498,-500.0,0.00022794,2]
[310627792,1704592241507,-500.0,0.00022794,2]
[310627793,1704592241516,-500.0,0.00022794,2]
[310627794,1704592241525,-500.0,0.00022794,2]
[310627795,1704592241534,-500.0,0.00022794,2]
[310627796,1704592241543,-500.0,0.00022794,2]
[310627797,1704592241552,-500.0,0.00022794,2]
[310627798,1704592241561,-1394.04,0.00022794,2]
[310627799,1704592241570,-333.32232804,0.00022794,2]
[310627800,1704592241579,-500.0,0.00022794,2]
[310627801,1704592241588,-621.65568374,0.00022794,2]
[310627802,1704592241597,-500.0,0.00022794,2]
[310627803,1704592241606,-500.0,0.00022794,2]
[310627804,1704592241615,-500.0,0.00022794,2]
[310627805,1704592241625,-500.0,0.00022794,2]
[310627806,1704592241634,-500.0,0.00022794,2]
[310627807,1704592241643,-13295.60023442,0.00022794,2]
[310627808,1704592241653,-1794.69738834,0.00022794,2]
[310627809,1704592241662,-106629.80229165,0.00022795,2]
[310627810,1704592241674,-2409.72207285,0.00022795,2]
[310627811,1704592241685,-1810.64316714,0.00022795,2]
[310627812,1704592241696,-6253.65376991,0.00022795,2]
[310627813,1704592241707,-44011.94432494,0.00022795,2]
[310627814,1704592241752,-1763.46970248,0.00022795,2]
[310627815,1704592241764,-759.84819433,0.00022795,2]
[310627816,1704592241775,-784.20550947,0.00022795,2]
[310627817,1704592242062,-3357.43734119,0.00022795,2]
[310627818,1704592242081,-1642.9,0.00022795,2]
[310627819,1704592242096,-6592.58137193,0.00022795,2]
[310627820,1704592242293,-637.3463702,0.00022795,2]
[310627821,1704592242308,-452.25615153,0.00022795,2]
[310627822,1704592242324,-359.45574608,0.00022795,2]
[310627823,1704592242337,-251.58,0.00022795,2]
[310627824,1704592242370,-500.0,0.00022794,2]
[310627825,1704592242382,-3776.11594696,0.00022795,2]
[310627826,1704592242397,-1070.61537606,0.00022795,2]
[310627828,1704592243320,-500.0,0.00022794,2]
[310627829,1704592243331,-500.0,0.00022794,2]
[310627830,1704592243343,-62436.42266328,0.00022795,2]
[310627831,1704592243354,-737.91931447,0.00022795,2]
[310627832,1704592243383,-357.64244576,0.00022795,2]
[310627833,1704592243402,-633.13267263,0.00022795,2]
[310627834,1704592243416,-776.61821534,0.00022795,2]
[310627835,1704592243430,-432.81246575,0.00022795,2]
[310627836,1704592243458,-500.0,0.00022794,2]
[310627837,1704592243468,-58108.88667047,0.00022795,2]
[310627838,1704592243482,-666.41,0.00022795,2]
[310627839,1704592243496,-2992.89364074,0.00022795,2]
[310627840,1704592243510,-340.519297,0.00022795,2]
[310627841,1704592243522,-591.92803933,0.00022795,2]
[310627842,1704592243535,-4132.27602417,0.00022795,2]
[310627843,1704592243549,-7029.55965735,0.00022795,2]
[310627844,1704592243563,-1298.65792426,0.00022795,2]
[310627845,1704592243576,-2172.25771036,0.00022795,2]
[310627846,1704592243589,-678.67638117,0.00022795,2]
[310627847,1704592243602,-484.14546954,0.00022795,2]
[310627848,1704592243617,-338.20311739,0.00022795,2]
[310627849,1704592243630,-6649.251936,0.00022795,2]
[310627850,1704592243644,-11578.20901827,0.00022795,2]
[310627851,1704592243655,-2565.32651664,0.00022795,2]
[310627852,1704592243668,-500.0,0.00022795,2]
[310627853,1704592243681,-4033.39558336,0.00022795,2]
[310627854,1704592243692,-411.8062,0.00022796,2]
[310627855,1704592243702,-443.5349,0.00022799,2]
[310627856,1704592243714,-1000.0,0.000228,2]
[310627857,1704592243724,-291.23186492,0.000228,3]
[310627859,1704592243738,-708.76813508,0.000228,3]
[310627860,1704592243749,-500.0,0.00022815,2]
[310627861,1704592243760,-200.0,0.00022815,2]
[310627862,1704592243771,-500.0,0.00022816,2]
[310627863,1704592243781,-200.0,0.00022816,2]
[310627864,1704592243792,-343.7,0.00022835,2]
[310627866,1704592243803,-338.12,0.00022892,2]
[310627869,1704592243813,-500.0,0.00022892,2]
[310627872,1704592243825,-500.0,0.00022892,2]
[310627873,1704592243835,-500.0,0.00022892,2]
[310627874,1704592243845,-385.85556143,0.00022892,2]
[310627875,1704592243859,-114.14443857,0.00022892,2]
[310627876,1704592243869,-500.0,0.00022892,2]
[310627877,1704592243880,-500.0,0.00022892,2]
[310627878,1704592243891,-28.69809953,0.00022892,2]
[310627885,1704592246333,-737.22,0.00022794,2]
[310627886,1704592246344,-72.51028551,0.00022794,2]
[310627887,1704592246358,-273.10736025,0.00022794,2]
[310627888,1704592246369,-500.0,0.00022794,2]
[310627889,1704592246380,-500.0,0.00022794,2]
[310627890,1704592246391,-1079.56190047,0.00022892,2]
[310627891,1704592246402,-1642.02132928,0.00022892,2]
[310627892,1704592246430,-2488.24504238,0.00022892,2]
[310627893,1704592246450,-395.27795143,0.00022892,2]
[310627894,1704592246464,-674.80567691,0.00022892,2]
[310627895,1704592246475,-325.19432309,0.00022892,2]
[310627896,1704592246507,-174.80567691,0.00022892,2]
[310627897,1704592246518,-500.0,0.00022892,2]
[310627898,1704592246530,-271.22339035,0.00022892,2]
[310627899,1704592246540,-1033.85,0.00022892,2]
[310627900,1704592246553,-564.01,0.00022892,2]
[310627901,1704592246563,-994.12,0.00022892,2]
[310627902,1704592246574,-291.30017874,0.00022892,2]
[310627903,1704592246670,-208.69982126,0.00022892,2]
[310627904,1704592246681,-500.0,0.00022892,2]
[310627905,1704592246691,-500.0,0.00022892,2]
[310627906,1704592246701,-500.0,0.00022892,2]
[310627907,1704592246712,-500.0,0.00022892,2]
[310627908,1704592246722,-500.0,0.00022892,2]
[310627909,1704592246733,-1542.22,0.00022892,2]
[310627910,1704592246744,-500.0,0.00022892,2]
[310627911,1704592246756,-500.0,0.00022892,2]
[310627912,1704592246766,-500.0,0.00022892,2]
[310627913,1704592246776,-500.0,0.00022892,2]
[310627914,1704592246787,-500.0,0.00022892,2]
[310627915,1704592246798,-500.0,0.00022892,2]
[310627916,1704592246808,-500.0,0.00022892,2]
[310627917,1704592246819,-500.0,0.00022892,2]
[310627918,1704592246829,-500.0,0.00022892,2]
[310627919,1704592246840,-500.0,0.00022892,2]
[310627920,1704592246850,-500.0,0.00022892,2]
[310627921,1704592246862,-175.99309171,0.00022892,2]
[310627922,1704592246873,-500.0,0.00022892,2]
[310627923,1704592246886,-500.0,0.00022892,2]
[310627924,1704592246895,-1325.79,0.00022892,2]
[310627925,1704592246904,-500.0,0.00022892,2]
[310627926,1704592246914,-500.0,0.00022892,2]
[310627927,1704592246924,-373.72974529,0.00022892,2]
[310627928,1704592246934,-500.0,0.00022892,2]
[310627929,1704592246943,-500.0,0.00022892,2]
[310627930,1704592246952,-1524.68,0.00022892,2]
[310627931,1704592246962,-500.0,0.00022892,2]
[310627932,1704592246971,-1097.74,0.00022892,2]
[310627933,1704592246980,-724.2,0.00022892,2]
[310627934,1704592246990,-1394.04,0.00022892,2]
[310627935,1704592246999,-500.0,0.00022892,2]
[310627936,1704592247297,-500.0,0.00022892,2]
[310627937,1704592247314,-500.0,0.00022892,2]
[310627938,1704592247332,-709.81,0.00022893,2]
[310627939,1704592247342,-6133.76394743,0.00022893,2]
[310627940,1704592247351,-500.0,0.00022893,2]
[310627941,1704592247360,-500.0,0.00022893,2]
[310627942,1704592247370,-536.7579924,0.00022893,2]
[310627943,1704592247380,-500.0,0.00022893,2]
[310627944,1704592247389,-500.0,0.00022893,2]
[310627945,1704592247398,-500.0,0.00022893,2]
[310627946,1704592247407,-500.0,0.00022893,2]
[310627947,1704592247416,-500.0,0.00022893,2]
[310627948,1704592247425,-500.0,0.00022893,2]
[310627949,1704592247434,-500.0,0.00022893,2]
[310627950,1704592247443,-500.0,0.00022893,2]
[310627951,1704592247452,-549.97935491,0.00022893,2]
[310627952,1704592247461,-500.0,0.00022893,2]
[310627953,1704592247470,-318.41,0.00022893,2]
[310627954,1704592247479,-500.0,0.00022893,2]
[310627955,1704592247488,-500.0,0.00022893,2]
[310627956,1704592247498,-500.0,0.00022893,2]
[310627957,1704592247508,-500.0,0.00022893,2]
[310627958,1704592247517,-500.0,0.00022893,2]
[310627959,1704592247526,-553.22578159,0.00022893,2]
[310627960,1704592247535,-500.0,0.00022893,2]
[310627961,1704592247545,-500.0,0.00022893,2]
[310627962,1704592247554,-500.0,0.00022893,2]
[310627963,1704592247562,-500.0,0.00022893,2]
[310627964,1704592247571,-500.0,0.00022893,2]
[310627965,1704592247580,-500.0,0.00022893,2]
[310627966,1704592247589,-500.0,0.00022893,2]
[310627967,1704592247598,-500.0,0.00022893,2]
[310627968,1704592247608,-500.0,0.00022893,2]
[310627969,1704592247617,-542.39028953,0.00022893,2]
[310627970,1704592247626,-500.0,0.00022893,2]
[310627971,1704592247635,-500.0,0.00022893,2]
[310627972,1704592247645,-500.0,0.00022893,2]
[310627973,1704592247654,-500.0,0.00022893,2]
[310627974,1704592247663,-500.0,0.00022893,2]
[310627975,1704592247672,-500.0,0.00022893,2]
[310627976,1704592247681,-500.0,0.00022893,2]
[310627977,1704592247690,-500.0,0.00022893,2]
[310627978,1704592247699,-500.0,0.00022893,2]
[310627979,1704592247709,-500.0,0.00022893,2]
[310627980,1704592247719,-500.0,0.00022893,2]
[310627981,1704592247729,-500.0,0.00022893,2]
[310627982,1704592247744,-500.0,0.00022893,2]
[310627983,1704592247755,-500.0,0.00022893,2]
[310627984,1704592247764,-157.21593056,0.00022893,2]
[310627985,1704592247774,-500.0,0.00022893,2]
[310627986,1704592247783,-500.0,0.00022893,2]
[310627987,1704592247792,-500.0,0.00022893,2]
[310627988,1704592247801,-500.0,0.00022893,2]
[310627989,1704592247810,-500.0,0.00022893,2]
[310627990,1704592247820,-500.0,0.00022893,2]
[310627991,1704592247830,-500.0,0.00022893,2]
[310627992,1704592247839,-500.0,0.00022893,2]
[310627993,1704592247848,-500.0,0.00022893,2]
[310627994,1704592247857,-500.0,0.00022893,2]
[310627995,1704592247866,-500.0,0.00022893,2]
[310627996,1704592247875,-500.0,0.00022893,2]
[310627997,1704592247885,-500.0,0.00022893,2]
[310627998,1704592247894,-500.0,0.00022893,2]
[310627999,1704592247904,-500.0,0.00022893,2]
[310628000,1704592247914,-500.0,0.00022893,2]
[310628001,1704592247924,-500.0,0.00022893,2]
[310628002,1704592247934,-500.0,0.00022893,2]
[310628003,1704592247944,-500.0,0.00022893,2]
[310628004,1704592247954,-500.0,0.00022893,2]
[310628005,1704592247965,-502.4908922,0.00022893,2]
[310628006,1704592247974,-514.21,0.00022893,2]
[310628007,1704592247984,-500.0,0.00022893,2]
[310628008,1704592247996,-500.0,0.00022893,2]
[310628009,1704592248007,-500.0,0.00022893,2]
[310628010,1704592248017,-500.0,0.00022893,2]
[310628011,1704592248028,-546.2017281,0.00022893,2]
[310628012,1704592248038,-538.22442758,0.00022893,2]
[310628013,1704592248047,-500.0,0.00022893,2]
[310628014,1704592248057,-1315.06,0.00022893,2]
[310628015,1704592248066,-500.0,0.00022893,2]
[310628016,1704592248081,-500.0,0.00022893,2]
[310628017,1704592248091,-561.2862694,0.00022893,2]
[310628018,1704592248102,-500.0,0.00022893,2]
[310628019,1704592248111,-609.28104824,0.00022893,2]
[310628020,1704592248121,-598.32,0.00022893,2]
[310628021,1704592248130,-500.0,0.00022893,2]
[310628022,1704592248140,-500.0,0.00022893,2]
[310628023,1704592248150,-200.72,0.00022893,2]
[310628024,1704592248159,-500.0,0.00022893,2]
[310628025,1704592248168,-500.0,0.00022893,2]
[310628026,1704592248177,-500.0,0.00022893,2]
[310628027,1704592248187,-500.0,0.00022893,2]
[310628028,1704592248196,-720.04,0.00022893,2]
[310628029,1704592248206,-3603.35,0.00022893,2]
[310628030,1704592248215,-500.0,0.00022893,2]
[310628031,1704592248225,-500.0,0.00022893,2]
[310628032,1704592248234,-500.0,0.00022893,2]
[310628033,1704592248244,-266.21453821,0.00022893,2]
[310628034,1704592248254,-213.04765305,0.00022893,2]
[310628035,1704592248263,-809.16,0.00022893,2]
[310628036,1704592248273,-500.0,0.00022893,2]
[310628037,1704592248282,-500.0,0.00022893,2]
[310628038,1704592248292,-500.0,0.00022893,2]
[310628039,1704592248301,-500.0,0.00022893,2]
[310628040,1704592248310,-642.8,0.00022893,2]
[310628041,1704592248319,-545.44050481,0.00022893,2]
[310628042,1704592248329,-500.0,0.00022893,2]
[310628043,1704592248338,-500.0,0.00022893,2]
[310628044,1704592248347,-500.0,0.00022893,2]
[310628045,1704592248357,-595.0940225,0.00022893,2]
[310628046,1704592248366,-569.74,0.00022893,2]
[310628047,1704592248375,-617.87,0.00022893,2]
[310628048,1704592248384,-500.0,0.00022893,2]
[310628049,1704592248393,-281.87681515,0.00022893,2]
[310628050,1704592248403,-535.14024998,0.00022893,2]
[310628051,1704592248414,-2819.5,0.00022893,2]
[310628052,1704592248423,-500.0,0.00022893,2]
[310628053,1704592248433,-618.88820635,0.00022893,2]
[310628054,1704592248442,-16303.39,0.00022893,2]
[310628055,1704592248451,-2223.49,0.00022893,2]
[310628056,1704592248460,-562.9115573,0.00022893,2]
[310628057,1704592248470,-621.17892153,0.00022893,2]
[310628058,1704592248483,-1376.06,0.00022893,2]
[310628059,1704592248492,-500.0,0.00022893,2]
[310628060,1704592248503,-500.0,0.00022893,2]
[310628061,1704592248512,-514.39,0.00022893,2]
[310628062,1704592248523,-500.0,0.00022893,2]
[310628063,1704592248532,-500.0,0.00022893,2]
[310628064,1704592248541,-164.33857012,0.00022893,2]
[310628065,1704592248551,-500.0,0.00022893,2]
[310628066,1704592248561,-500.0,0.00022893,2]
[310628067,1704592248571,-500.0,0.00022893,2]
[310628068,1704592248581,-500.0,0.00022893,2]
[310628069,1704592248590,-500.0,0.00022893,2]
[310628070,1704592248599,-531.15124182,0.00022893,2]
[310628071,1704592248608,-500.0,0.00022893,2]
[310628072,1704592248618,-500.0,0.00022893,2]
[310628073,1704592248627,-500.0,0.00022893,2]
[310628074,1704592248636,-500.0,0.00022893,2]
[310628075,1704592248646,-500.0,0.00022893,2]
[310628076,1704592248656,-500.0,0.00022893,2]
[310628077,1704592248665,-500.0,0.00022893,2]
[310628078,1704592248675,-500.0,0.00022893,2]
[310628079,1704592248684,-500.0,0.00022893,2]
[310628080,1704592248694,-4924.37922852,0.00022894,2]
[310628081,1704592248703,-500.0,0.00022894,2]
[310628082,1704592248713,-500.0,0.00022894,2]
[310628083,1704592248722,-355.58421091,0.00022894,2]
[310628084,1704592248731,-758.41,0.00022894,2]
[310628085,1704592248741,-500.0,0.00022894,2]
[310628086,1704592248750,-500.0,0.00022894,2]
[310628087,1704592248760,-500.0,0.00022894,2]
[310628088,1704592248770,-500.0,0.00022894,2]
[310628089,1704592248779,-500.0,0.00022894,2]
[310628090,1704592248789,-427.77286474,0.00022894,2]
[310628091,1704592248798,-500.0,0.00022894,2]
[310628092,1704592248807,-500.0,0.00022894,2]
[310628093,1704592248816,-500.0,0.00022894,2]
[310628094,1704592248825,-568.37,0.00022894,2]
[310628095,1704592248834,-500.0,0.00022894,2]
[310628096,1704592248843,-500.0,0.00022894,2]
[310628097,1704592248853,-538.61528827,0.00022894,2]
[310628098,1704592248862,-500.0,0.00022894,2]
[310628099,1704592248872,-500.0,0.00022894,2]
[310628100,1704592248881,-500.0,0.00022894,2]
[310628101,1704592248891,-500.0,0.00022894,2]
[310628102,1704592248900,-500.0,0.00022894,2]
[310628103,1704592248909,-500.0,0.00022894,2]
[310628104,1704592248918,-500.0,0.00022894,2]
[310628105,1704592248927,-500.0,0.00022894,2]
[310628106,1704592248937,-500.0,0.00022894,2]
[310628107,1704592248946,-500.0,0.00022894,2]
[310628108,1704592248955,-290.81522464,0.00022894,2]
[310628109,1704592248964,-500.0,0.00022894,2]
[310628110,1704592248974,-500.0,0.00022894,2]
[310628111,1704592248983,-500.0,0.00022894,2]
[310628112,1704592248993,-500.0,0.00022894,2]
[310628113,1704592249002,-599.25032916,0.00022894,2]
[310628114,1704592249011,-500.0,0.00022894,2]
[310628115,1704592249020,-500.0,0.00022894,2]
[310628116,1704592249030,-652.87,0.00022894,2]
[310628117,1704592249039,-363.64745213,0.00022894,2]
[310628118,1704592249048,-500.0,0.00022894,2]
[310628119,1704592249057,-500.0,0.00022894,2]
[310628120,1704592249066,-510.45172159,0.00022894,2]
[310628121,1704592249086,-509.96062798,0.00022894,2]
[310628122,1704592249098,-500.0,0.00022894,2]
[310628123,1704592249107,-500.0,0.00022894,2]
[310628124,1704592249118,-500.0,0.00022894,2]
[310628125,1704592249128,-523.36428108,0.00022894,2]
[310628126,1704592249138,-500.0,0.00022894,2]
[310628127,1704592249149,-500.0,0.00022894,2]
[310628128,1704592249160,-500.0,0.00022894,2]
[310628129,1704592249171,-500.0,0.00022894,2]
[310628130,1704592249183,-500.0,0.00022894,2]
[310628131,1704592249193,-500.0,0.00022894,2]
[310628132,1704592249205,-508.66338297,0.00022894,2]
[310628133,1704592249217,-500.0,0.00022894,2]
[310628134,1704592249227,-500.0,0.00022894,2]
[310628135,1704592249238,-500.0,0.00022894,2]
[310628136,1704592249247,-500.0,0.00022894,2]
[310628137,1704592249257,-500.0,0.00022894,2]
[310628138,1704592249267,-500.0,0.00022894,2]
[310628139,1704592249277,-612.23,0.00022894,2]
[310628140,1704592249286,-526.5381804,0.00022894,2]
[310628141,1704592249295,-500.0,0.00022894,2]
[310628142,1704592249305,-500.0,0.00022894,2]
[310628143,1704592249314,-437.68659151,0.00022894,2]